bitfinex/quotes_ETHUSD_20250930
["timestamp","ask_amount","ask_price","bid_price","bid_amount"]
[1759198846024,0.7062,4210.8,4210.7,16.99330203]
[1759198846240,0.7062,4210.8,4210.7,19.70830203]
[1759198847332,0.001,4210.8,4210.7,19.70830203]
[1759198847532,0.001,4210.8,4210.7,21.96073027]
[1759198847695,0.001,4210.8,4210.7,19.70830203]
[1759198847696,0.7062,4210.8,4210.7,19.70830203]
[1759198848425,0.7062,4210.8,4210.7,16.99330203]
[1759198848729,0.001,4210.8,4210.7,19.70830203]
[1759198851246,0.001,4210.8,4210.7,20.39140203]
[1759198852046,0.001,4210.8,4210.7,19.70830203]
[1759198852217,0.001,4210.8,4210.7,21.94084027]
[1759198854430,0.001,4210.8,4210.7,16.99330203]
[1759198854634,0.7062,4210.8,4210.7,19.70630203]
[1759198855722,0.001,4210.8,4210.7,19.70630203]
[1759198857069,0.001,4211.0,4210.9,2.37478923]
[1759198857273,0.001,4211.0,4210.9,5.08778923]
[1759198859630,0.7062,4211.0,4210.9,5.08778923]
[1759198860358,0.2445,4211.0,4210.9,5.08778923]
[1759198860835,0.001,4211.0,4210.9,5.08778923]
[1759198861259,0.7062,4211.0,4210.9,5.08778923]
[1759198861756,0.2445,4211.0,4210.9,5.08778923]
[1759198861948,0.001,4211.0,4210.9,5.08778923]
[1759198862258,0.001,4211.0,4210.9,7.99889836]
[1759198862556,0.7062,4211.0,4210.9,5.08678923]
[1759198862864,0.7062,4211.0,4210.9,19.58678923]
[1759198864259,0.7062,4211.0,4210.8,0.199]
[1759198864469,0.7062,4211.0,4210.9,2.712]
[1759198865376,3.08093284,4211.0,4210.9,2.712]
[1759198865543,3.63842314,4211.0,4210.9,2.712]
[1759198866470,1.2636903,4211.0,4210.9,2.712]
[1759198867578,3.63842314,4211.0,4210.9,2.712]
[1759198868271,3.63842314,4211.0,4210.9,17.212]
[1759198868464,1.2636903,4211.0,4210.9,17.212]
[1759198869176,3.2445,4211.0,4210.9,17.212]
[1759198869381,0.001,4211.0,4210.9,20.38488923]
[1759198869686,0.001,4211.0,4210.9,14.6184]
[1759198869887,0.6676,4211.0,4210.9,17.214]
[1759198870452,3.04233284,4211.0,4210.9,17.214]
[1759198870847,6.88412904,4211.0,4210.9,14.5]
[1759198871149,5.37478923,4210.9,4210.8,0.199]
[1759198871356,5.37478923,4210.9,4210.8,1.034]
[1759198871357,13.07759712,4210.9,4210.8,1.034]
[1759198871715,13.74419712,4210.9,4210.8,1.034]
[1759198871884,7.73756185,4210.9,4210.8,1.034]
[1759198872616,8.52956185,4210.9,4210.8,0.199]
[1759198872781,8.52956185,4210.9,4210.8,2.914]
[1759198874301,15.44036974,4210.9,4210.8,0.199]
[1759198874904,15.44036974,4210.9,4210.8,1e-08]
[1759198875917,18.15636974,4210.9,4210.8,1e-08]
[1759198876282,23.00389701,4210.9,4210.8,1e-08]
[1759198877314,23.00389701,4210.9,4210.5,0.002]
[1759198877315,3.16695843,4210.6,4210.5,1e-08]
[1759198877484,14.44343144,4210.6,4210.5,1e-08]
[1759198877683,15.12853144,4210.6,4210.5,1e-08]
[1759198882137,14.66873144,4210.6,4210.5,1e-08]
[1759198882706,14.90323144,4210.6,4210.5,1e-08]
[1759198883042,15.12853144,4210.6,4210.5,1e-08]
[1759198884551,17.84553144,4210.6,4210.5,1e-08]
[1759198886439,14.44343144,4210.6,4210.5,1e-08]
[1759198887254,14.66873144,4210.6,4210.5,1e-08]
[1759198887956,15.12853144,4210.6,4210.5,1e-08]
[1759198888316,17.84553144,4210.6,4210.5,1e-08]
[1759198889761,15.12853144,4210.6,4210.5,1e-08]
[1759198889966,17.84553144,4210.6,4210.5,1e-08]
[1759198893263,15.12853144,4210.6,4210.5,1e-08]
[1759198893465,17.38473144,4210.6,4210.5,1e-08]
[1759198893954,17.84453144,4210.6,4210.5,1e-08]
[1759198894931,14.44443144,4210.6,4210.5,1e-08]
[1759198895547,14.66973144,4210.6,4210.5,1e-08]
[1759198897942,15.12953144,4210.6,4210.5,1e-08]
[1759198898148,14.66973144,4210.6,4210.5,1e-08]
[1759198898750,14.44443144,4210.6,4210.5,1e-08]
[1759198899572,13.65243144,4210.6,4210.5,0.67280001]
[1759198900671,7.77326386,4210.6,4210.5,0.67280001]
[1759198900856,2.37595843,4210.6,4210.5,0.67280001]
[1759198901246,3.16795843,4210.6,4210.5,1e-08]
[1759198901453,6.16795843,4210.6,4210.5,1e-08]
[1759198901650,7.6101566,4210.6,4210.5,1e-08]
[1759198902854,7.6101566,4210.6,4210.5,0.23310001]
[1759198904955,7.6101566,4210.6,4210.5,1e-08]
[1759198906078,7.6101566,4210.6,4210.5,0.23310001]
[1759198906682,7.6101566,4210.6,4210.5,1e-08]
[1759198908384,7.6101566,4210.6,4210.5,0.67280001]
[1759198911661,7.6101566,4210.6,4210.5,0.23310001]
[1759198912898,7.6101566,4210.6,4210.5,1e-08]
[1759198913090,8.3046566,4210.6,4210.5,1e-08]
[1759198913871,7.8493566,4210.6,4210.5,1e-08]
[1759198914191,2.37546618,4209.7,4209.6,0.002]
[1759198914387,11.25463376,4209.7,4209.6,0.002]
[1759198915389,12.04663376,4209.7,4209.6,0.6748]
[1759198915700,12.04663376,4209.7,4209.6,0.002]
[1759198916091,6.16746618,4209.7,4209.6,0.6748]
[1759198916284,12.04663376,4209.7,4209.6,0.6748]
[1759198919796,11.25463376,4209.7,4209.6,0.6748]
[1759198921704,11.25463376,4209.7,4209.6,0.2351]
[1759198922005,12.61763247,4209.7,4209.6,0.002]
[1759198922978,5.37546618,4209.7,4209.6,0.6748]
[1759198924208,5.49386618,4209.7,4209.6,0.6748]
[1759198926418,5.49386618,4209.7,4209.6,15.1748]
[1759198926921,3.0,4209.7,4209.6,15.1748]
[1759198929591,0.001,4210.6,4209.8,2.3754047]
[1759198929809,2.37601327,4210.6,4209.9,3.42785353]
[1759198930017,2.3750575,4210.5,4210.0,0.6921]
[1759198930219,2.3750575,4210.5,4210.1,15.1921]
[1759198930420,2.3750575,4210.5,4210.2,0.6921]
[1759198930590,2.3750575,4210.5,4210.3,3.4041]
[1759198930789,2.37596801,4210.6,4210.3,3.4041]
[1759198931013,0.001,4210.6,4210.4,0.6921]
[1759198931319,0.001,4210.6,4210.5,0.6921]
[1759198932821,0.001,4210.6,4210.5,3.4041]
[1759198933931,0.001,4210.6,4210.5,17.4393]
[1759198934100,0.001,4210.6,4210.5,17.9041]
[1759198937229,0.001,4210.6,4210.5,18.0225]
[1759198937927,0.001,4210.6,4210.5,20.0622567]
[1759198939299,0.001,4210.6,4210.5,18.0225]
[1759198943057,0.001,4210.6,4210.5,17.211]
[1759198944737,0.001,4210.6,4210.5,14.5]
[1759198944939,5.37501484,4210.5,4209.8,0.238]
[1759198945116,5.60591484,4210.5,4209.9,2.8294]
[1759198945941,2.37507992,4210.4,4209.9,2.8294]
[1759198946137,0.1194,4210.6,4210.0,3.08305801]
[1759198946323,0.1194,4210.6,4210.1,2.711]
[1759198946538,0.1194,4210.6,4210.1,2.949]
[1759198946736,0.1194,4210.6,4210.1,2.711]
[1759198946948,3.0,4210.4,4210.1,2.711]
[1759198947258,0.2309,4210.4,4210.1,2.711]
[1759198947756,3.0,4210.5,4210.1,2.711]
[1759198948141,2.37502371,4210.5,4210.1,2.711]
[1759198948347,2.60592371,4210.5,4210.1,2.711]
[1759198949255,3.2309,4210.5,4210.1,2.711]
[1759198949460,0.43134,4210.6,4210.1,2.949]
[1759198949627,0.43134,4210.6,4210.2,0.238]
[1759198949828,0.43134,4210.6,4210.3,2.711]
[1759198950855,3.0,4210.5,4210.3,2.711]
[1759198951231,0.6685,4210.4,4210.3,2.711]
[1759198951456,3.6685,4210.4,4210.3,2.711]
[1759198951660,3.0,4210.4,4210.3,2.711]
[1759198954127,3.0,4210.4,4210.3,3.4188]
[1759198954327,3.0,4210.4,4210.3,5.79392766]
[1759198954928,0.001,4210.6,4210.5,2.37501484]
[1759198955132,0.001,4210.6,4210.5,3.19190909]
[1759198955331,0.001,4210.6,4210.5,3.89970909]
[1759198955868,0.001,4210.6,4210.5,21.11070909]
[1759198957062,0.001,4210.6,4210.5,18.39970909]
[1759198957255,0.001,4210.6,4210.5,21.11070909]
[1759198959364,0.001,4210.6,4210.5,21.22910909]
[1759198961061,0.001,4210.6,4210.5,18.51810909]
[1759198961251,0.001,4210.6,4210.5,21.11070909]
[1759198968094,0.001,4210.6,4210.5,18.39970909]
[1759198968389,0.001,4210.6,4210.5,21.10970909]
[1759198969703,0.001,4210.6,4210.5,15.31689425]
[1759198970002,0.001,4210.6,4210.5,19.58601484]
[1759198971007,0.001,4210.6,4210.5,20.27141484]
[1759198971302,0.001,4210.6,4210.5,20.38981484]
[1759198974774,0.001,4210.6,4210.5,19.70441484]
[1759198976682,0.664,4210.6,4210.5,19.70441484]
[1759198977293,0.2293,4210.6,4210.5,19.70441484]
[1759198981092,0.001,4210.6,4210.5,19.70441484]
[1759198981292,0.001,4210.6,4210.5,22.22580767]
[1759198981493,0.001,4210.6,4210.5,22.66630767]
[1759198982024,0.001,4210.6,4210.5,23.45830767]
[1759198982520,0.001,4211.0,4210.9,3.16678923]
[1759198982723,0.001,4211.0,4210.9,5.99618923]
[1759198982923,0.001,4211.0,4210.9,7.58723504]
[1759198983133,0.001,4211.0,4210.9,22.08723504]
[1759198983923,0.001,4211.0,4210.9,21.29523504]
[1759198985042,0.001,4211.0,4210.9,20.85473504]
[1759198985237,0.001,4211.0,4210.9,21.29523504]
[1759198991047,0.001,4211.0,4210.9,17.89883504]
[1759198991350,0.001,4211.0,4210.9,20.60983504]
[1759198991517,0.001,4211.0,4210.9,20.83823504]
[1759198991722,0.001,4211.0,4210.9,21.29283504]
[1759198994244,1e-08,4211.4,4211.0,3.792]
[1759198994451,1e-08,4211.4,4211.3,3.28496367]
[1759198994651,1e-08,4211.4,4211.3,5.99696367]
[1759198994972,1e-08,4211.4,4211.3,21.17996367]
[1759198995974,0.001,4212.4,4211.3,21.17996367]
[1759198995975,1e-08,4211.9,4211.8,2.37428177]
[1759198996154,1e-08,4211.9,4211.8,5.22842458]
[1759198996355,1e-08,4211.9,4211.8,6.67098177]
[1759198996552,1e-08,4211.9,4211.8,20.37898177]
[1759198996877,1e-08,4211.9,4211.8,24.17098177]
[1759198997178,0.001,4212.4,4212.1,0.792]
[1759198997370,0.6932,4214.0,4213.9,2.37309855]
[1759198997566,0.6932,4214.0,4213.9,5.08609855]
[1759198997767,2.37241351,4215.2,4214.1,2.37297696]
[1759198997957,0.4494,4215.1,4214.5,0.1184]
[1759198998276,0.4494,4215.1,4214.8,0.1184]
[1759198998480,0.2438,4215.0,4214.9,2.73672535]
[1759198998645,0.6932,4215.0,4214.9,17.213]
[1759198999480,3.43499924,4215.0,4214.9,17.213]
[1759198999788,1.06252,4215.0,4214.9,17.213]
[1759198999994,0.6932,4215.0,4214.9,17.213]
[1759199000962,3.06567924,4215.0,4214.9,17.213]
[1759199001162,0.6932,4215.0,4214.9,17.213]
[1759199002165,3.6932,4215.0,4214.9,17.213]
[1759199002791,0.6932,4215.0,4214.9,17.213]
[1759199003095,1.06252,4215.0,4214.9,17.213]
[1759199003590,3.43499924,4215.0,4214.9,17.213]
[1759199004161,12.29853229,4215.0,4214.9,17.213]
[1759199006559,12.29853229,4215.0,4214.9,2.713]
[1759199006982,12.29853229,4215.0,4214.9,17.213]
[1759199007893,4.06252,4215.0,4214.9,17.213]
[1759199008094,4.18092,4215.0,4214.9,17.213]
[1759199008294,3.1184,4215.0,4214.9,17.213]
[1759199008615,3.2438,4215.0,4214.9,17.213]
[1759199009309,3.6932,4215.0,4214.9,17.213]
[1759199010421,3.6932,4215.0,4214.9,2.713]
[1759199010923,3.6932,4215.0,4214.9,17.213]
[1759199011125,4.29975708,4215.0,4214.9,17.213]
[1759199012723,12.53576937,4215.0,4214.9,2.713]
[1759199013992,2.37285918,4214.4,4213.5,2.37330691]
[1759199014193,3.0,4214.3,4213.7,0.1184]
[1759199014539,3.6932,4214.3,4213.8,17.214]
[1759199014692,0.6932,4214.2,4213.8,17.214]
[1759199015095,0.2438,4214.2,4213.8,17.214]
[1759199015694,3.0,4214.1,4213.8,17.214]
[1759199015891,0.2438,4214.0,4213.8,17.214]
[1759199016122,0.2438,4213.9,4213.8,17.214]
[1759199016692,3.1184,4214.1,4213.8,17.214]
[1759199016895,0.2438,4214.8,4213.9,0.6743]
[1759199017122,0.001,4215.0,4214.4,2.3727931]
[1759199017329,0.001,4215.0,4214.5,3.4120276]
[1759199018023,0.001,4215.0,4214.6,0.6743]
[1759199018228,0.001,4215.0,4214.7,2.73872648]
[1759199018426,2.37348801,4215.0,4214.7,3.41302648]
[1759199018726,0.2438,4214.9,4214.7,2.715]
[1759199018899,0.4811488,4214.9,4214.7,2.715]
[1759199019928,9.54283305,4214.8,4214.7,2.715]
[1759199020123,11.91542486,4214.8,4214.7,2.715]
[1759199020429,2.37270873,4214.6,4214.5,2.715]
[1759199020724,2.3727044,4214.6,4214.5,2.715]
[1759199021100,3.0,4214.5,4213.8,14.5]
[1759199021302,3.0,4214.2,4213.9,2.715]
[1759199021499,0.2379,4214.1,4213.9,2.715]
[1759199021719,3.0,4214.2,4213.9,2.715]
[1759199021927,3.0,4214.2,4213.9,2.9506]
[1759199022143,11.23625773,4214.6,4214.0,0.2356]
[1759199022439,1.55035803,4214.5,4214.0,0.2356]
[1759199022640,2.37267304,4214.7,4214.1,0.6944]
[1759199022931,2.37270561,4214.6,4214.2,2.716]
[1759199023300,0.2373488,4214.9,4214.3,3.09099756]
[1759199023501,0.001,4215.0,4214.3,0.4588]
[1759199023706,0.001,4215.0,4214.5,2.3727607]
[1759199023932,0.001,4215.0,4214.6,5.08970112]
[1759199024240,0.001,4215.0,4214.7,0.02372648]
[1759199024535,0.001,4215.0,4214.8,2.37254326]
[1759199024730,0.001,4215.0,4214.9,17.217]
[1759199025137,0.001,4215.0,4214.9,17.4526]
[1759199025333,0.001,4215.0,4214.9,17.217]
[1759199028835,0.001,4215.0,4214.9,2.717]
[1759199029208,0.001,4215.0,4214.9,17.217]
[1759199029938,0.2389,4215.0,4214.9,17.217]
[1759199030313,3.2389,4215.0,4214.9,17.217]
[1759199030513,3.85601403,4215.0,4214.9,17.217]
[1759199031127,3.22849327,4215.0,4214.9,2.717]
[1759199031337,3.66989327,4215.0,4214.9,2.717]
[1759199032037,6.66989327,4215.0,4214.7,2.715]
[1759199032209,3.0,4214.9,4214.7,2.715]
[1759199032540,0.1184,4214.9,4214.7,2.715]
[1759199033721,2.3727044,4214.6,4214.4,2.715]
[1759199033931,3.3563,4214.5,4214.4,2.715]
[1759199034325,0.1184,4214.5,4214.4,2.715]
[1759199035117,0.1184,4214.8,4214.4,2.9506]
[1759199035358,3.1184,4214.8,4214.4,2.9506]
[1759199035518,0.69138428,4214.8,4214.4,2.715]
[1759199035722,0.001,4215.0,4214.4,2.715]
[1759199035723,0.1184,4214.6,4214.4,2.715]
[1759199036140,3.1184,4214.6,4214.4,2.715]
[1759199036342,2.37287365,4214.3,4213.9,0.2356]
[1759199036550,0.1184,4214.3,4214.0,2.715]
[1759199036760,2.49127371,4214.3,4213.6,0.1184]
[1759199037087,0.1184,4214.1,4213.7,2.716]
[1759199037352,5.72929642,4214.1,4213.7,2.716]
[1759199037527,2.72929642,4214.1,4213.7,2.716]
[1759199037720,0.1184,4214.1,4213.7,2.716]
[1759199037920,0.1184,4214.1,4213.8,0.6944]
[1759199038124,0.1184,4214.1,4213.9,2.715]
[1759199038322,0.1184,4214.1,4213.9,3.4094]
[1759199038740,0.1184,4214.1,4213.9,2.9506]
[1759199039140,2.49143359,4214.1,4213.9,2.715]
[1759199039555,0.1184,4214.1,4213.9,2.715]
[1759199039857,2.49139385,4214.1,4213.9,2.715]
[1759199040240,0.1184,4214.1,4213.9,2.715]
[1759199040853,2.49139301,4214.1,4213.9,2.715]
[1759199041056,0.1184,4214.1,4213.9,2.715]
[1759199041369,5.37304224,4214.0,4213.9,2.715]
[1759199041660,3.0,4214.0,4213.9,2.715]
[1759199041963,0.1184,4214.1,4213.9,2.715]
[1759199042464,0.1184,4214.1,4213.9,2.9506]
[1759199043231,0.1184,4214.1,4213.9,2.715]
[1759199043432,0.1184,4214.1,4214.0,0.2356]
[1759199043759,0.1184,4214.1,4213.9,2.715]
[1759199043937,2.49143971,4214.1,4213.9,2.715]
[1759199044258,3.0,4214.0,4213.9,2.715]
[1759199044468,3.6793,4214.0,4212.8,0.2356]
[1759199044634,5.8668874,4213.0,4212.9,2.714]
[1759199044834,5.8668874,4213.0,4212.9,17.214]
[1759199045445,8.3587341,4213.3,4212.9,17.4496]
[1759199045646,2.37349808,4213.2,4212.9,17.4496]
[1759199045847,2.37349808,4213.2,4212.9,17.214]
[1759199046263,2.37355788,4213.1,4212.9,17.214]
[1759199046567,2.37355788,4213.1,4212.9,2.714]
[1759199046936,8.2404929,4213.0,4212.9,2.714]
[1759199047131,8.3588929,4213.0,4212.9,2.714]
[1759199047478,11.3588929,4213.0,4212.9,2.714]
[1759199047639,12.77682219,4213.0,4212.9,2.714]
[1759199047834,12.77682219,4213.0,4212.3,0.1204]
[1759199047835,2.37385177,4212.6,4212.3,0.002]
[1759199048139,11.35923099,4212.4,4212.3,2.716]
[1759199048368,8.9852874,4212.4,4212.3,2.716]
[1759199048559,3.0,4212.4,4212.3,3.4104]
[1759199051556,0.2297,4213.4,4212.3,4.35649495]
[1759199051557,3.1184,4213.1,4212.3,4.35649495]
[1759199051783,3.0,4212.8,4212.3,3.0802]
[1759199052062,3.0,4212.8,4212.4,0.2458]
[1759199052378,3.0,4212.8,4212.5,2.9608]
[1759199052579,3.0,4212.8,4212.5,3.1873]
[1759199052887,3.0,4212.8,4212.6,0.2458]
[1759199053188,3.0,4212.8,4212.7,2.715]
[1759199053363,2.37377453,4212.7,4212.3,0.002]
[1759199053568,5.8668874,4212.4,4212.3,0.002]
[1759199053790,11.24083099,4212.4,4212.3,0.969]
[1759199053980,11.24083099,4212.4,4212.3,0.002]
[1759199053981,11.47053099,4212.4,4212.3,0.002]
[1759199054292,13.32941799,4212.4,4212.3,0.002]
[1759199054492,12.86681799,4212.4,4212.3,0.002]
[1759199054662,11.24083099,4212.4,4212.3,0.002]
[1759199056068,21.30701839,4212.4,4211.9,0.002]
[1759199056267,3.0,4211.9,4209.8,0.002]
[1759199056608,2.37509601,4210.4,4209.8,0.002]
[1759199056884,12.03407147,4210.2,4209.8,0.002]
[1759199057285,12.72637147,4210.2,4209.8,0.002]
[1759199057504,15.45337147,4210.2,4209.8,0.002]
[1759199058261,9.58648407,4210.2,4209.8,0.002]
[1759199058467,10.78264208,4210.2,4209.8,0.002]
[1759199059188,6.80104208,4210.2,4209.8,0.002]
[1759199059360,5.37518407,4210.2,4209.8,0.002]
[1759199059565,3.0,4210.2,4210.1,0.7201]
[1759199072210,3.0,4210.2,4210.1,3.4461]
[1759199072409,3.0,4210.2,4210.1,2.728]
[1759199072716,3.0,4210.2,4210.1,0.002]
[1759199072717,5.60838407,4210.2,4210.1,0.002]
[1759199072901,3.2332,4210.2,4210.1,0.002]
[1759199073209,3.0,4210.2,4210.1,0.002]
[1759199073583,5.37518407,4210.2,4210.1,0.002]
[1759199075082,3.0,4210.2,4210.1,0.002]
[1759199075482,3.0,4210.2,4210.1,0.7064]
[1759199075886,3.0,4210.2,4210.1,0.2337]
[1759199076094,3.0,4210.2,4210.1,0.002]
[1759199076389,3.6516,4210.2,4210.1,0.002]
[1759199077385,3.0,4210.2,4210.1,0.7064]
[1759199078385,3.0,4210.2,4210.1,0.002]
[1759199078721,3.0,4210.2,4210.1,0.2337]
[1759199080195,3.0,4210.2,4210.1,0.002]
[1759199084620,6.17544705,4210.2,4210.1,0.002]
[1759199084790,6.18058407,4210.2,4210.1,0.002]
[1759199084988,5.72168407,4210.2,4210.1,0.002]
[1759199085621,3.3465,4210.2,4210.1,0.002]
[1759199085801,5.49358407,4210.2,4210.1,0.002]
[1759199087634,5.72168407,4210.2,4210.1,0.002]
[1759199087817,3.3465,4210.2,4210.1,0.002]
[1759199088207,3.1184,4210.2,4210.1,0.002]
[1759199088825,3.1184,4210.2,4210.1,0.2289]
[1759199089639,3.1184,4210.2,4210.1,0.002]
[1759199090338,3.1184,4210.2,4210.1,0.6587]
[1759199090636,3.0,4210.2,4210.1,0.6587]
[1759199090841,3.0,4210.2,4210.1,0.2289]
[1759199091140,3.0,4210.2,4210.1,0.002]
[1759199091438,6.61154211,4210.2,4210.1,0.002]
[1759199091644,6.72994211,4210.2,4210.1,0.002]
[1759199093262,6.27104211,4210.2,4210.1,0.002]
[1759199093439,6.72994211,4210.2,4210.1,0.002]
[1759199095265,4.35475804,4210.2,4210.1,0.002]
[1759199095440,6.72994211,4210.2,4210.1,0.002]
[1759199096517,6.27104211,4210.2,4210.1,0.002]
[1759199097205,6.04294211,4210.2,4210.1,0.002]
[1759199100525,6.27104211,4210.2,4210.1,0.002]
[1759199101142,7.52194211,4210.2,4210.1,0.002]
[1759199101744,7.82089832,4210.2,4210.1,0.002]
[1759199102343,14.7436242,4210.2,4210.1,0.002]
[1759199102545,3.792,4210.1,4209.6,1e-08]
[1759199102745,6.16757904,4209.5,4209.1,0.002]
[1759199102951,8.89057904,4209.5,4209.1,0.002]
[1759199103141,9.57757904,4209.5,4209.1,0.002]
[1759199108178,1.74656242,4210.1,4209.4,0.2289]
[1759199108486,1.74656242,4210.1,4209.4,0.6587]
[1759199108487,2.37557904,4209.5,4209.4,0.6587]
[1759199108692,12.29830492,4209.5,4209.4,0.002]
[1759199108859,12.52640492,4209.5,4209.4,0.002]
[1759199109058,12.29830492,4209.5,4209.4,0.002]
[1759199111793,12.29830492,4209.5,4209.4,0.2445]
[1759199111994,14.03798297,4209.5,4209.4,0.2445]
[1759199112767,14.03798297,4209.5,4209.4,0.002]
[1759199115596,12.29830492,4209.5,4209.4,0.6753]
[1759199116770,3.0,4209.5,4209.4,0.6753]
[1759199121093,3.0,4209.5,4209.4,3.05093548]
[1759199121771,0.1184,4210.0,4209.7,2.37542353]
[1759199121974,0.1184,4210.4,4209.7,2.8384]
[1759199122210,0.1184,4210.4,4209.8,3.04867248]
[1759199122411,5.99562279,4210.4,4209.8,3.04867248]
[1759199122574,0.001,4210.1,4209.9,0.6733]
[1759199122774,0.001,4210.1,4210.0,0.6733]
[1759199122973,0.001,4210.1,4209.7,2.8384]
[1759199123177,3.0,4210.0,4209.8,14.727]
[1759199123508,3.0,4210.0,4209.9,0.227]
[1759199125629,3.001,4210.1,4209.9,0.227]
[1759199126147,3.001,4210.1,4209.8,14.5]
[1759199126310,2.37529691,4210.0,4209.9,2.72]
[1759199126635,8.87722279,4210.0,4209.9,2.72]
[1759199128235,8.87722279,4210.0,4209.6,0.227]
[1759199128236,3.0,4209.9,4209.8,2.719]
[1759199131132,3.0,4209.9,4209.4,0.5667]
[1759199131133,5.37539645,4209.9,4209.7,2.718]
[1759199131302,5.61069645,4209.9,4209.7,2.718]
[1759199131699,5.37539645,4209.9,4209.7,2.718]
[1759199132149,2.37540975,4209.8,4209.7,2.718]
[1759199132732,2.37552261,4209.6,4209.5,2.719]
[1759199132906,11.2527454,4209.6,4209.5,2.719]
[1759199133836,5.37557904,4209.5,4209.4,0.002]
[1759199134025,7.4477239,4209.5,4209.4,0.002]
[1759199134218,5.37557904,4209.5,4209.4,0.002]
[1759199134763,3.0,4209.5,4209.4,0.002]
[1759199136137,5.49387617,4209.7,4209.4,0.002]
[1759199136327,5.49387617,4209.7,4209.4,0.6753]
[1759199136636,2.3755513,4209.6,4209.5,0.227]
[1759199137341,2.37557904,4209.5,4209.4,0.002]
[1759199137555,11.95300183,4209.5,4209.4,0.002]
[1759199139858,11.48810183,4209.5,4209.4,0.002]
[1759199141524,5.37557904,4209.5,4209.4,0.002]
[1759199146531,12.72640183,4209.5,4209.4,0.002]
[1759199146760,14.55152436,4209.5,4209.4,0.002]
[1759199147757,20.42874715,4209.5,4209.4,0.002]
[1759199148362,14.55152436,4209.5,4209.4,0.002]
[1759199152249,7.20070157,4209.5,4209.4,0.002]
[1759199152444,7.99270157,4209.5,4209.4,0.002]
[1759199154589,7.20070157,4209.5,4209.4,0.002]
[1759199154819,3.0,4209.5,4209.4,0.6716]
[1759199154958,0.001,4209.6,4209.4,0.6716]
[1759199155154,0.001,4209.6,4209.4,0.002]
[1759199155454,0.001,4209.6,4209.5,0.6696]
[1759199155858,2.37652261,4209.6,4209.5,0.2273]
[1759199156155,2.37557904,4209.5,4209.4,0.002]
[1759199157388,2.37557904,4209.5,4209.4,0.2293]
[1759199157795,0.001,4209.6,4209.4,0.2293]
[1759199157993,0.001,4209.6,4209.4,0.4443]
[1759199158295,2.37652261,4209.6,4209.5,0.2273]
[1759199159578,2.37652261,4209.6,4209.4,0.002]
[1759199159579,5.49397904,4209.5,4209.4,0.002]
[1759199159791,11.37120183,4209.5,4209.4,0.002]
[1759199160189,5.49397904,4209.5,4209.4,0.2293]
[1759199160389,5.49397904,4209.5,4209.4,0.002]
[1759199160586,5.49397904,4209.5,4209.4,0.2293]
[1759199163902,5.49397904,4209.5,4209.4,0.002]
[1759199165321,5.49397904,4209.5,4209.4,0.6716]
[1759199165322,0.1184,4209.5,4209.4,0.6716]
[1759199166424,2.49397904,4209.5,4209.4,0.6716]
[1759199167352,2.49397904,4209.5,4209.4,0.002]
[1759199167532,12.53984991,4209.5,4209.4,0.002]
[1759199169255,3.0,4209.5,4209.4,0.002]
[1759199169438,3.0,4209.5,4209.4,0.6849]
[1759199170019,3.0,4209.5,4209.4,15.1849]
[1759199171023,5.37557904,4209.5,4209.4,15.1849]
[1759199171537,5.37557904,4209.5,4209.4,0.6849]
[1759199172052,3.0,4209.5,4209.4,0.6849]
[1759199172454,5.37557904,4209.5,4209.4,0.6849]
[1759199173466,3.0,4209.5,4209.4,0.6849]
[1759199175634,3.0,4209.5,4209.4,15.1849]
[1759199176164,5.37557904,4209.5,4209.4,15.1849]
[1759199176364,3.0,4209.5,4209.4,15.1849]
[1759199176947,5.37557904,4209.5,4209.4,15.1849]
[1759199178556,3.0,4209.5,4209.4,0.6849]
[1759199179141,3.0,4209.5,4209.4,15.1849]
[1759199182154,3.0,4209.5,4209.4,0.6849]
[1759199182326,0.001,4209.6,4209.5,2.37557904]
[1759199182526,0.001,4209.6,4209.5,6.12662483]
[1759199182763,0.001,4209.6,4209.5,6.10286904]
[1759199184129,0.001,4209.6,4209.5,1.01229]
[1759199184325,0.001,4209.6,4209.5,2.9406]
[1759199184529,0.001,4209.6,4209.5,3.3869]
[1759199185548,0.001,4209.6,4209.5,5.76247904]
[1759199189157,0.001,4209.6,4209.5,3.04747904]
[1759199189329,0.001,4209.6,4209.5,5.76247904]
[1759199189526,0.001,4209.6,4209.5,6.57689613]
[1759199192661,0.001,4209.6,4209.5,3.18999613]
[1759199192837,0.001,4209.6,4209.5,5.76247904]
[1759199195756,0.001,4209.6,4209.5,20.38087904]
[1759199199478,0.001,4209.6,4209.5,19.93457904]
[1759199199980,0.6981,4209.6,4209.5,14.6184]
[1759199200279,0.6981,4209.6,4209.5,17.3334]
[1759199200478,0.001,4209.6,4209.5,19.70897904]
[1759199201084,0.001,4209.6,4209.5,17.3334]
[1759199201278,0.2272,4209.6,4209.5,17.3334]
[1759199201479,0.6981,4209.6,4209.5,14.5]
[1759199201781,0.6981,4209.6,4209.5,17.215]
[1759199204181,0.2272,4209.6,4209.5,2.715]
[1759199204685,0.2272,4209.6,4209.5,17.215]
[1759199205286,0.6981,4209.6,4209.5,17.215]
[1759199205453,0.001,4209.6,4209.5,17.215]
[1759199205659,0.2272,4209.6,4209.5,17.215]